bitfinex/quotes_ETHUSD_20251107
["timestamp","ask_amount","ask_price","bid_price","bid_amount"]
[1762536711539,0.2458,3384.9,3384.8,0.1472]
[1762536711964,0.6894,3384.9,3384.8,0.1472]
[1762536712177,2.95377344,3385.5,3384.8,0.1472]
[1762536712478,2.95409888,3385.2,3384.2,0.4611]
[1762536712680,2.9539559,3385.3,3384.3,4.6766892]
[1762536712863,2.9539559,3385.3,3385.2,0.1472]
[1762536713250,3.4993559,3385.3,3385.2,0.1472]
[1762536713479,0.1907,3385.9,3385.1,0.1992]
[1762536713789,3.14412449,3385.9,3385.8,0.1472]
[1762536713958,3.94393694,3385.9,3385.8,0.1472]
[1762536714548,2.96043226,3385.9,3385.8,0.1472]
[1762536714761,0.007,3385.9,3385.8,0.1472]
[1762536715480,3.69352449,3385.9,3385.8,0.1472]
[1762536715843,0.7401,3385.9,3385.8,0.1472]
[1762536716681,3.69352449,3385.9,3385.8,0.1472]
[1762536716886,1.40477762,3385.9,3385.8,0.1472]
[1762536717292,0.7401,3385.9,3385.8,0.1472]
[1762536717485,3.69352449,3385.9,3385.8,0.1472]
[1762536717895,3.69352449,3385.9,3384.3,0.4611]
[1762536718095,3.02171172,3385.8,3385.7,0.1472]
[1762536718478,3.53392668,3385.8,3385.7,0.1472]
[1762536718666,2.21944731,3385.8,3385.7,0.1472]
[1762536718866,5.17295903,3385.8,3385.7,0.1472]
[1762536719386,2.18783235,3385.8,3385.7,0.1472]
[1762536719584,0.007,3385.9,3385.7,0.1472]
[1762536719773,0.007,3385.9,3385.3,0.0579]
[1762536719966,0.007,3385.9,3385.3,0.519]
[1762536720171,0.007,3385.9,3385.8,0.027]
[1762536720597,0.007,3385.9,3385.8,0.4881]
[1762536720793,0.007,3385.9,3385.8,8.183661]
[1762536720974,0.005,3386.9,3385.8,0.4881]
[1762536721294,0.005,3386.9,3386.6,0.5522]
[1762536721501,0.005,3386.9,3386.6,8.957487]
[1762536721653,0.005,3386.9,3386.6,4.271346]
[1762536721858,0.005,3386.9,3386.6,0.5566]
[1762536722364,0.005,3387.9,3386.8,2.95263965]
[1762536722557,0.005,3388.9,3386.6,3.914584]
[1762536722558,0.003,3388.6,3387.9,0.405504]
[1762536722760,0.003,3388.6,3388.5,0.1847]
[1762536723256,0.003,3388.6,3388.5,0.592]
[1762536723657,0.003,3388.6,3388.5,0.1847]
[1762536723970,0.003,3388.6,3387.9,0.4698]
[1762536724171,0.003,3388.6,3387.9,7.05651]
[1762536724392,0.003,3388.6,3388.0,6.568831]
[1762536724590,0.003,3388.6,3388.0,7.035431]
[1762536724791,0.003,3388.6,3388.1,6.541547]
[1762536725108,0.003,3388.6,3388.1,0.4666]
[1762536725273,0.003,3388.6,3388.2,0.4666]
[1762536725666,0.003,3388.6,3387.8,0.1847]
[1762536725998,0.003,3388.6,3387.9,3.976629]
[1762536726162,0.003,3388.6,3388.0,7.437256]
[1762536726363,0.003,3388.6,3388.1,0.4668]
[1762536726796,0.003,3388.6,3388.2,4.646986]
[1762536726999,0.003,3388.6,3388.4,1.259712]
[1762536727201,0.003,3388.6,3388.5,11.448371]
[1762536727359,0.003,3388.6,3388.5,19.647243]
[1762536727565,0.005,3388.9,3388.6,1.259712]
[1762536727901,0.005,3388.9,3388.8,1.259712]
[1762536728106,0.005,3389.9,3388.9,0.405504]
[1762536728304,0.005,3389.9,3389.8,0.1847]
[1762536728598,0.005,3389.9,3389.8,0.5384]
[1762536729395,0.005,3389.9,3389.8,8.695409]
[1762536729603,0.005,3389.9,3389.8,0.5384]
[1762536729808,0.005,3389.9,3389.8,5.932199]
[1762536729973,0.005,3389.9,3389.8,13.117183]
[1762536730183,0.005,3389.9,3389.8,0.6856]
[1762536730562,0.005,3389.9,3389.8,17.55021]
[1762536731104,0.005,3389.9,3389.8,30.6856]
[1762536731661,0.07616822,3391.3,3389.8,32.350816]
[1762536731859,0.07616822,3391.3,3390.8,7.19116165]
[1762536732064,0.03086949,3391.7,3391.2,0.3309]
[1762536732379,0.1472,3394.5,3391.2,0.3309]
[1762536732380,6.60095765,3395.2,3391.7,0.405504]
[1762536732794,1.48702188,3395.4,3391.6,7.86066965]
[1762536732795,2.94704739,3393.3,3391.9,1.259712]
[1762536732938,0.005,3393.9,3392.1,0.405504]
[1762536733139,2.95148698,3393.9,3392.8,0.1051]
[1762536733345,2.9514756,3393.9,3392.8,0.2586]
[1762536733648,2.94664585,3393.7,3392.8,0.2586]
[1762536733814,0.005,3393.9,3392.8,0.2586]
[1762536734018,0.005,3393.9,3392.8,3.642209]
[1762536734220,0.005,3393.9,3392.8,30.2586]
[1762536734404,0.005,3393.9,3392.8,5.170018]
[1762536734604,0.007,3392.9,3392.8,0.2586]
[1762536734819,0.007,3392.9,3392.8,2.574885]
[1762536735007,0.007,3392.9,3392.8,0.3116]
[1762536735209,0.005,3393.9,3392.9,21.205541]
[1762536735407,0.005,3393.9,3393.0,8.18542706]
[1762536735632,0.005,3393.9,3393.8,0.1839]
[1762536735812,0.4763,3393.9,3392.5,0.1057]
[1762536736511,2.94670757,3393.7,3392.6,0.2147]
[1762536736702,0.005,3393.9,3392.6,0.2147]
[1762536736936,2.94662022,3393.8,3392.6,0.2147]
[1762536737241,0.005,3393.9,3392.6,0.2147]
[1762536737541,0.005,3393.9,3392.7,2.206121]
[1762536737767,0.005,3394.9,3392.8,2.055712]
[1762536738050,0.005,3394.9,3393.9,0.405504]
[1762536738249,0.005,3394.9,3394.0,0.4698]
[1762536738409,0.005,3394.9,3394.1,0.43496689]
[1762536738759,0.005,3394.9,3393.8,0.1817]
[1762536739069,2.94584081,3394.7,3393.8,0.1817]
[1762536739255,0.4713,3394.8,3393.2,0.1847]
[1762536739541,0.005,3394.9,3393.3,0.4698]
[1762536740048,2.94568722,3394.8,3393.4,3.966539]
[1762536740245,0.005,3394.9,3393.3,0.4698]
[1762536740461,2.94611583,3394.3,3393.3,0.4698]
[1762536740642,3.42191935,3394.9,3392.8,0.1847]
[1762536740953,0.81349194,3394.8,3392.9,0.4698]
[1762536741165,2.94649969,3393.9,3392.8,0.1847]
[1762536741464,0.4713,3394.7,3392.9,9.931445]
[1762536741611,0.4713,3394.7,3392.8,0.1847]
[1762536741612,2.94609966,3394.4,3393.0,3.493748]
[1762536741809,2.94612735,3394.3,3393.1,3.711368]
[1762536742106,2.94639601,3394.0,3393.0,0.4698]
[1762536742310,0.4713,3394.7,3393.1,15.514732]
[1762536742558,0.005,3394.9,3393.2,1.665216]
[1762536742716,2.95061451,3394.9,3393.4,0.405504]
[1762536742930,2.95061451,3394.9,3393.5,12.09781]
[1762536743267,0.005,3394.9,3393.7,0.405504]
[1762536743475,0.005,3394.9,3393.8,13.662487]
[1762536743673,0.005,3394.9,3393.6,0.6545]
[1762536743674,2.94570932,3394.8,3393.7,0.4698]
[1762536743856,0.005,3394.9,3393.7,5.985984]
[1762536744180,0.005,3394.9,3394.8,0.1847]
[1762536744340,0.1965,3396.3,3394.8,0.1847]
[1762536744667,0.1965,3396.3,3393.9,0.4675]
[1762536744668,0.4763,3395.9,3393.9,0.4675]
[1762536744835,2.94539668,3395.2,3394.0,8.140364]
[1762536745038,2.94545505,3395.1,3393.9,0.4675]
[1762536745239,0.4713,3395.7,3393.9,0.4675]
[1762536745653,0.03161496,3395.6,3393.6,0.1847]
[1762536745964,0.4713,3395.7,3393.7,0.4662]
[1762536746169,3.88432902,3395.7,3393.8,3.726118]
[1762536746378,0.4713,3395.6,3393.6,0.1847]
[1762536746528,2.94560217,3394.9,3393.7,1.439612]
[1762536746728,2.94559183,3395.0,3393.7,1.439612]
[1762536746929,0.4713,3395.6,3393.8,7.957436]
[1762536747241,0.81342147,3395.6,3393.8,0.2025]
[1762536747568,2.94551254,3395.0,3393.8,0.2025]
[1762536747730,2.94575708,3394.8,3393.8,0.2025]
[1762536747944,0.4713,3395.5,3393.8,0.2025]
[1762536748138,0.005,3395.9,3393.9,6.471937]
[1762536748139,2.94541518,3395.2,3393.9,6.471937]
[1762536748340,0.4713,3395.8,3394.0,1.665216]
[1762536748577,0.4713,3395.8,3394.1,7.742402]
[1762536748884,0.4713,3395.8,3393.6,0.1847]
[1762536748885,2.94533474,3395.2,3394.2,2.717872]
[1762536749045,0.4713,3395.8,3394.0,0.4698]
[1762536749240,0.4713,3395.7,3394.1,2.067655]
[1762536749444,3.41621823,3395.7,3394.1,2.067655]
[1762536749676,2.94514256,3395.5,3394.2,0.4698]
[1762536749949,2.94519295,3395.4,3394.3,4.065892]
[1762536750151,2.94524848,3395.3,3394.2,0.4698]
[1762536750351,0.005,3395.9,3395.2,0.1847]
[1762536750898,0.005,3395.9,3394.9,0.1847]
[1762536751047,2.94512082,3395.5,3394.5,0.4698]
[1762536751248,0.005,3395.9,3394.6,2.172694]
[1762536751640,0.005,3395.9,3395.8,0.1847]
[1762536751799,0.005,3395.9,3395.8,14.516586]
[1762536752013,0.005,3395.9,3395.8,0.6545]
[1762536752298,2.94336512,3397.5,3395.9,0.405504]
[1762536752497,2.94326902,3397.6,3396.8,0.1464]
[1762536752649,2.94800045,3397.9,3396.8,0.1464]
[1762536752856,2.94317987,3397.7,3396.8,0.1464]
[1762536753058,0.005,3397.9,3396.8,0.1464]
[1762536753254,0.005,3397.9,3395.8,0.1847]
[1762536753606,0.03500584,3396.9,3396.1,0.405504]
[1762536753783,0.03500584,3396.9,3395.9,30.4843]
[1762536753784,0.03500584,3396.9,3396.3,1.259712]
[1762536753984,0.03500584,3396.9,3396.4,0.4843]
[1762536754157,0.03500584,3396.9,3396.0,0.405504]
[1762536754467,0.03500584,3396.9,3396.0,1.259712]
[1762536754672,0.1906,3397.5,3396.1,8.446408]
[1762536754991,0.1906,3397.5,3396.3,0.405504]
[1762536755196,0.005,3397.9,3396.4,6.637668]
[1762536755401,0.005,3397.9,3396.2,0.4843]
[1762536755604,2.94308081,3397.8,3396.3,3.210684]
[1762536755805,0.005,3397.9,3396.4,0.405504]
[1762536756009,2.94340618,3397.5,3396.1,0.1816]
[1762536756208,0.29434062,3397.5,3396.1,0.1816]
[1762536756394,2.94402516,3396.8,3396.1,0.1816]
[1762536756708,0.005,3397.9,3396.2,8.208997]
[1762536756880,2.94308081,3397.8,3396.3,3.07212]
[1762536757082,0.005,3397.9,3396.3,3.20462]
[1762536757287,0.005,3397.9,3396.3,0.1325]
[1762536757288,0.3317,3397.8,3396.3,0.1325]
[1762536757494,2.9437,3397.1,3396.3,0.1325]
[1762536757773,2.94373454,3397.1,3396.3,0.1325]
[1762536757974,2.94325406,3397.6,3396.1,0.1816]
[1762536758320,2.94325406,3397.6,3395.9,0.405504]
[1762536758321,0.0983,3397.1,3395.2,0.4843]
[1762536758611,3.27547391,3397.0,3395.1,0.005]
[1762536758812,2.97550707,3396.9,3395.1,0.005]
[1762536759013,2.9446408,3396.0,3395.1,0.005]
[1762536759213,2.94533459,3395.2,3395.1,0.005]
[1762536760587,0.0655,3395.9,3395.1,0.005]
[1762536761178,2.94533459,3395.2,3395.1,0.005]
[1762536761375,0.5129,3395.9,3395.1,0.005]
[1762536761824,0.0693,3396.3,3395.1,0.005]
[1762536762124,0.0693,3396.6,3395.2,15.200574]
[1762536762332,0.0693,3396.6,3395.1,0.4808]
[1762536762333,2.9431167,3397.8,3395.3,4.887336]
[1762536762481,0.005,3397.9,3395.1,0.4808]
[1762536762482,0.03161496,3397.0,3395.1,0.4808]
[1762536762677,2.94470901,3396.0,3395.1,0.4808]
[1762536763019,0.2944709,3396.0,3395.1,0.005]
[1762536763180,2.94464075,3396.0,3395.9,0.1472]
[1762536763881,3.40614075,3396.0,3395.9,0.1472]
[1762536764145,2.94533459,3395.2,3395.1,0.005]
[1762536764618,0.0513,3396.1,3395.1,0.005]
[1762536764840,2.94533459,3395.2,3395.1,0.005]
[1762536765030,4.02750593,3395.2,3395.1,0.005]
[1762536765318,2.94608809,3394.4,3394.1,0.005]
[1762536765491,0.4615,3395.1,3394.1,0.005]
[1762536765693,0.5634,3395.1,3394.1,0.005]
[1762536766332,2.9455081,3395.0,3394.1,0.005]
[1762536766534,2.94620234,3394.2,3394.1,0.005]
[1762536767193,3.40410234,3394.2,3394.1,0.005]
[1762536767877,2.94620234,3394.2,3394.1,0.005]
[1762536769280,0.1858,3394.3,3394.1,0.005]
[1762536769485,2.94620234,3394.2,3394.1,0.005]
[1762536769917,0.1858,3394.3,3394.1,0.005]
[1762536770117,2.94601724,3394.5,3394.1,0.005]
[1762536770445,2.94595948,3394.5,3394.1,0.005]
[1762536770593,2.94558177,3395.0,3394.1,0.005]
[1762536770792,0.1019,3395.1,3394.1,0.005]
[1762536770996,0.1912,3394.2,3394.1,0.005]
[1762536771202,3.13740234,3394.2,3394.1,0.006]
[1762536771404,2.94620234,3394.2,3394.1,0.006]
[1762536773101,2.94612573,3394.3,3394.1,0.006]
[1762536773304,0.4657,3395.0,3394.1,0.006]
[1762536773721,2.94608013,3394.4,3394.1,0.006]
[1762536773892,0.4657,3395.0,3394.1,0.006]
[1762536774088,2.94591303,3394.6,3394.1,0.006]
[1762536774327,0.1019,3395.1,3394.1,0.4235]
[1762536774651,2.94568184,3394.8,3394.1,0.4235]
[1762536774872,3.04732134,3395.1,3395.0,0.1472]
[1762536775184,0.4657,3395.0,3394.1,0.006]
[1762536775464,3.64661697,3395.1,3394.1,0.006]
[1762536775465,0.70116464,3395.1,3394.1,0.006]
[1762536775670,2.94600603,3394.5,3394.1,0.006]
[1762536775872,0.005,3396.9,3395.0,0.0887]
[1762536776039,0.0745,3396.5,3395.1,7.184149]
[1762536776244,0.0745,3396.5,3395.0,0.0887]
[1762536776245,3.01871805,3396.5,3395.2,0.4758]
[1762536776438,0.0745,3396.5,3395.2,0.4758]
[1762536776778,0.0745,3396.5,3395.0,0.0887]
[1762536776779,0.5402,3396.5,3395.0,0.0887]
[1762536776932,2.94507094,3395.6,3394.6,0.1961]
[1762536777438,2.94508211,3395.5,3394.6,0.6719]
[1762536777638,0.0745,3396.5,3394.7,11.165993]
[1762536777835,0.0745,3396.5,3394.8,4.468341]
[1762536777836,2.94452276,3396.2,3394.8,4.468341]
[1762536778067,0.0745,3396.5,3394.8,4.468341]
[1762536778068,0.0745,3396.5,3394.8,3.389778]
[1762536778266,0.0745,3396.5,3394.6,0.1961]
[1762536778267,2.94479141,3395.9,3394.9,2.6418]
[1762536778478,2.94479141,3395.9,3394.9,0.4758]
[1762536778795,2.9447903,3395.9,3394.9,0.4758]
[1762536778999,0.5402,3396.5,3394.9,0.4758]
[1762536779196,2.94487688,3395.8,3394.9,0.4758]
[1762536779364,0.88861731,3396.5,3394.9,0.4758]
[1762536779365,2.94496393,3395.7,3394.9,0.4758]
[1762536779755,0.1946,3395.6,3394.6,0.1961]
[1762536779951,2.94518598,3395.4,3394.6,0.1961]
[1762536780196,0.1946,3395.6,3394.6,0.1961]
[1762536780366,0.1946,3395.9,3394.6,0.6719]
[1762536780566,0.005,3396.9,3394.7,2.765365]
[1762536780567,0.0745,3396.5,3394.7,2.765365]
[1762536780754,0.5402,3396.5,3394.8,0.4758]
[1762536780956,2.94554362,3395.0,3394.2,0.6719]
[1762536781157,2.94397153,3396.8,3394.3,3.366746]
[1762536781368,0.005,3397.9,3394.3,3.366746]
[1762536781369,6.73501432,3396.3,3394.3,0.4758]
[1762536781570,2.94558737,3395.0,3394.3,0.4758]
[1762536781769,2.94472746,3395.9,3394.3,0.4758]
[1762536782064,2.9455879,3395.0,3394.3,0.4758]
[1762536782262,3.92582284,3395.8,3394.3,0.4758]
[1762536782464,3.92582284,3395.8,3394.2,0.1961]
[1762536782465,2.94565931,3394.9,3394.2,0.1961]
[1762536782660,0.98097275,3395.8,3394.3,0.4626]
[1762536783021,2.94576204,3394.8,3394.3,0.4626]
[1762536783221,2.94490563,3395.7,3394.3,0.4626]
[1762536783411,2.94580933,3394.7,3394.3,0.4626]
[1762536783782,0.1946,3394.8,3394.1,0.006]
[1762536783984,2.94620179,3394.3,3394.1,0.006]
[1762536784198,2.94586358,3394.6,3394.1,0.006]
[1762536784393,0.1946,3394.9,3394.1,0.006]
[1762536784610,2.94620234,3394.2,3394.1,0.006]
[1762536785413,4.05894802,3394.2,3394.1,0.006]
[1762536785617,2.94689691,3393.4,3392.6,0.4626]
[1762536785928,2.94689691,3393.4,3392.2,0.4626]
[1762536786221,2.94689691,3393.4,3393.3,0.1482]
[1762536786609,3.43879691,3393.4,3393.3,0.1482]
[1762536788005,2.94707061,3393.2,3391.8,0.19]
[1762536788285,4.30376525,3393.2,3393.1,0.1522]
[1762536788510,4.79566525,3393.2,3393.1,0.1522]
[1762536788715,2.94793939,3392.2,3391.8,0.19]
[1762536789034,2.94793939,3392.2,3391.1,0.4676]
[1762536789241,2.84793939,3392.2,3391.1,0.4676]
[1762536789402,2.87955435,3392.2,3391.1,0.4676]
[1762536789587,3.33983939,3392.2,3391.1,0.4676]
[1762536789987,3.33983939,3392.2,3391.1,0.005]
[1762536790784,3.86860718,3392.2,3391.1,0.005]
[1762536791032,3.37670718,3392.2,3391.1,0.005]
[1762536791197,2.74793939,3392.2,3391.1,0.4676]
[1762536791529,2.74793939,3392.2,3392.1,0.1522]
[1762536791890,2.64793939,3392.2,3392.1,0.1522]
[1762536792097,3.17145435,3392.2,3392.1,0.005]
[1762536792335,3.78338363,3392.2,3392.1,0.005]
[1762536792533,2.94880868,3391.2,3391.1,0.005]
[1762536793047,2.94874378,3391.3,3391.1,0.005]
[1762536793230,0.1946,3391.7,3391.1,0.005]
[1762536793231,2.94880868,3391.2,3391.1,0.005]
[1762536793533,7.22691432,3392.1,3391.1,0.195]
[1762536793534,0.4919,3392.1,3391.1,0.195]
[1762536793706,0.1946,3392.3,3391.1,0.6576]
[1762536793903,2.94831684,3391.8,3391.1,0.6576]
[1762536794148,0.1946,3392.3,3391.1,0.6576]
[1762536794321,0.1946,3392.3,3389.1,0.005]
[1762536794322,6.73501432,3391.2,3389.1,0.005]
[1762536794530,0.4919,3392.2,3389.1,0.005]
[1762536794531,0.1946,3389.8,3389.1,0.005]
[1762536794733,2.9505488,3389.2,3389.1,0.005]
[1762536795228,3.3424488,3389.2,3389.1,0.005]
[1762536795392,2.9505488,3389.2,3389.1,0.005]
[1762536795995,3.4424488,3389.2,3389.1,0.005]
[1762536796229,2.95141963,3388.2,3388.1,0.005]
[1762536796967,4.26336792,3389.2,3388.1,0.005]
[1762536797257,0.4919,3389.2,3388.1,0.005]
[1762536797458,2.95063586,3389.1,3388.1,0.005]
[1762536797661,0.6865,3389.8,3388.1,0.4376]
[1762536797815,0.6865,3389.8,3388.2,2.5067]
[1762536798018,0.1946,3389.8,3388.2,0.4626]
[1762536798345,0.1946,3389.8,3388.1,0.195]
[1762536798346,2.95023039,3389.6,3388.3,0.4626]
[1762536798664,0.6865,3389.8,3388.3,0.4626]
[1762536798846,2.95066051,3389.1,3388.3,0.4626]
[1762536799049,2.95011357,3389.7,3388.3,0.4626]
[1762536799050,2.95078908,3389.0,3388.3,0.4626]
[1762536799363,2.95055803,3389.2,3388.3,0.4626]
[1762536799517,2.95064352,3389.1,3388.3,0.4626]
[1762536799723,2.94991527,3390.0,3388.4,6.799374]
[1762536799961,2.95026465,3389.6,3388.4,6.799374]
[1762536800153,2.94990272,3390.0,3388.5,0.4626]
[1762536800422,2.95040122,3389.4,3388.5,0.4626]
[1762536800617,2.95037469,3389.4,3388.5,0.4626]
[1762536800819,2.94996934,3389.9,3388.5,0.4626]
[1762536801044,3.62666418,3390.2,3388.5,0.4626]
[1762536801367,2.9498525,3390.0,3388.5,0.4626]
[1762536801559,0.85456642,3390.1,3388.5,0.4626]
[1762536801718,0.4919,3390.1,3388.5,0.4626]
[1762536801931,2.9503051,3389.5,3388.5,0.4626]
[1762536802149,3.62663098,3390.2,3388.5,0.4626]
[1762536802150,2.95038371,3389.4,3388.5,0.4626]
[1762536802366,2.95030348,3389.5,3389.4,0.1472]
[1762536803263,2.95025643,3389.6,3389.4,0.1472]
[1762536803469,2.95028765,3389.5,3389.4,0.1472]
[1762536804272,3.44218765,3389.5,3389.4,0.1472]
[1762536804496,0.4919,3389.5,3388.2,0.19]
[1762536804697,0.6769,3390.2,3388.3,0.49211332]
[1762536804850,2.95061052,3389.2,3388.3,0.4626]
[1762536805044,0.4919,3390.1,3388.4,0.02951245]
[1762536805250,0.4919,3390.1,3388.3,0.4626]
[1762536805251,3.44167808,3390.1,3388.3,0.4626]
[1762536805891,2.95103703,3388.7,3388.2,0.19]
[1762536806087,2.95011357,3389.7,3388.1,0.005]
[1762536806291,2.95141963,3388.2,3388.1,0.005]
[1762536807093,8.7617708,3389.3,3388.1,0.005]
[1762536807389,3.289,3390.2,3388.2,0.4626]
[1762536807390,0.4919,3389.8,3388.2,0.4626]
[1762536807749,5.81125744,3389.7,3388.1,0.005]
[1762536807949,2.95141963,3388.2,3388.1,0.005]
[1762536808173,2.95134286,3388.3,3388.1,0.005]
[1762536808492,0.4919,3389.3,3388.1,0.195]
[1762536808663,2.95064675,3389.1,3388.2,0.868104]
[1762536808991,2.95080059,3389.0,3388.2,0.868104]
[1762536809190,0.002,3389.5,3388.2,0.4626]
[1762536809373,0.34641641,3389.5,3388.2,0.4626]
[1762536809546,2.95075011,3389.0,3388.2,0.4626]
[1762536809746,2.95078992,3389.0,3388.3,0.405504]
[1762536809977,0.002,3389.5,3388.1,0.196]
[1762536809978,0.002,3389.5,3388.1,0.006]
[1762536810175,0.002,3389.5,3388.1,0.0574]
[1762536810383,0.002,3389.5,3388.2,9.287097]
[1762536810587,0.002,3389.5,3388.1,0.52]
[1762536810881,0.002,3389.5,3388.2,3.015813]
[1762536811083,0.002,3389.5,3388.2,0.405504]
[1762536811384,0.002,3389.5,3388.1,0.52]
[1762536811385,2.95065751,3389.1,3388.4,0.405504]
[1762536811598,2.95037469,3389.4,3388.2,0.405504]
[1762536811599,2.95089281,3388.9,3388.2,0.405504]
[1762536811746,0.002,3389.5,3388.2,0.405504]
[1762536811978,0.4919,3389.3,3388.2,0.405504]
[1762536812178,0.002,3389.5,3388.4,0.405504]
[1762536812394,0.002,3389.5,3388.6,0.405504]
[1762536812607,0.002,3389.5,3389.4,0.597104]
[1762536812823,0.002,3389.5,3389.4,1.057504]
[1762536813139,0.002,3389.5,3389.1,0.1916]
[1762536813334,0.002,3389.5,3389.2,0.4604]
[1762536813813,0.002,3389.5,3389.1,0.1916]
[1762536813999,0.002,3389.5,3389.1,0.652]
[1762536814314,0.002,3389.5,3389.4,0.1472]
[1762536814519,0.005,3390.9,3389.4,15.036613]
[1762536814674,0.005,3390.9,3390.8,0.597104]
[1762536815104,0.005,3390.9,3390.8,1.053304]
[1762536815615,0.005,3390.9,3390.8,10.400242]
[1762536815777,0.005,3390.9,3390.8,5.215871]
[1762536816518,0.005,3392.9,3390.9,15.085739]
[1762536816732,0.005,3392.9,3391.8,0.597104]
[1762536816892,0.005,3392.9,3391.8,1.057504]
[1762536817680,0.005,3392.9,3391.8,17.480602]
[1762536818015,0.005,3392.9,3391.8,18.788737]
[1762536818316,0.005,3392.9,3391.8,7.975806]
[1762536818616,0.005,3392.9,3391.8,5.194721]
[1762536818782,0.005,3392.9,3390.8,0.1916]
[1762536818977,2.94811869,3392.0,3390.8,0.1916]
[1762536819230,0.1564,3392.1,3390.9,9.245965]
[1762536819523,2.95320453,3391.9,3391.0,4.930635]
[1762536819822,2.94830173,3391.8,3391.1,4.272635]
[1762536820027,2.94830173,3391.8,3390.9,0.4604]
[1762536820181,0.005,3391.9,3391.0,3.096466]
[1762536820516,0.005,3391.9,3391.0,2.187169]
[1762536820700,2.9532016,3391.9,3391.0,3.843614]
[1762536820903,2.94828751,3391.8,3390.9,0.4604]
[1762536821078,2.95326419,3391.9,3391.0,2.068442]
[1762536821279,0.005,3391.9,3391.1,0.405504]
[1762536821479,0.005,3391.9,3391.3,0.405504]
[1762536821783,0.005,3391.9,3391.5,1.665216]
[1762536822007,0.005,3391.9,3391.7,0.405504]
[1762536822210,0.005,3391.9,3391.8,7.927378]
[1762536822411,0.005,3391.9,3391.8,8.404878]
[1762536822679,0.005,3392.9,3391.9,0.405504]
[1762536822880,0.005,3392.9,3392.8,0.593604]
[1762536823383,0.005,3392.9,3392.8,1.071104]
[1762536823828,0.005,3392.9,3392.1,0.4775]
[1762536824123,0.005,3392.9,3390.9,0.4775]
[1762536824287,0.005,3392.9,3391.0,1.737212]
[1762536824485,2.95235065,3392.9,3392.8,0.1472]
[1762536824904,3.44145065,3392.9,3392.8,0.1472]
[1762536825810,4.08031294,3392.9,3392.8,0.1472]
[1762536826196,2.94830827,3391.8,3390.8,0.6691]
[1762536826395,2.94750493,3392.7,3390.8,0.6691]
[1762536826687,5.81125744,3392.7,3390.8,0.1916]
[1762536826887,0.4891,3392.6,3390.8,0.1916]
[1762536827129,2.94776559,3392.4,3390.9,4.493986]
[1762536827311,2.94838799,3391.7,3390.9,0.4775]
[1762536827497,0.1965,3392.3,3390.9,0.4775]
[1762536827829,2.94808284,3392.1,3390.9,0.4775]
[1762536828010,0.1965,3392.3,3391.0,0.405504]
[1762536828337,2.94849931,3391.6,3390.9,0.4775]
[1762536828501,2.94793939,3392.2,3390.9,0.4775]
[1762536828688,0.4891,3392.2,3390.9,0.4775]
[1762536828888,0.1965,3392.3,3390.8,0.1926]
[1762536829115,2.94858082,3391.5,3390.8,0.001]
[1762536829339,0.4891,3392.1,3390.8,0.001]
[1762536829488,2.94874281,3391.3,3390.8,0.001]
[1762536829691,2.94897984,3391.1,3390.8,0.001]
[1762536829890,0.36335635,3392.0,3390.8,0.001]
[1762536829891,0.1971,3391.2,3390.8,0.001]
[1762536830302,2.94896687,3391.1,3390.8,0.001]
[1762536830503,0.1971,3391.2,3390.8,0.001]
[1762536831225,0.1971,3391.2,3390.8,0.501]
[1762536831589,3.14591003,3391.2,3390.8,0.501]
[1762536831788,0.4891,3391.8,3390.8,0.501]
[1762536832029,2.94887461,3391.2,3390.8,0.501]
[1762536832324,0.58975766,3391.2,3390.8,0.501]
[1762536832622,2.9487021,3391.4,3390.8,0.501]
[1762536832794,0.1971,3391.6,3390.8,0.501]
[1762536832995,2.94904237,3391.0,3390.8,0.501]
[1762536833192,0.6862,3391.6,3390.8,0.501]
[1762536833399,1.63077923,3391.6,3390.8,0.501]
[1762536833601,2.94876353,3391.3,3390.8,0.501]
[1762536833838,4.57927168,3391.6,3390.8,0.501]
[1762536834147,0.6862,3391.6,3390.8,0.501]
[1762536834477,2.94860248,3391.5,3390.8,0.501]
[1762536834894,2.94865182,3391.4,3390.8,0.501]
[1762536835099,0.1971,3391.6,3390.8,0.501]
[1762536835294,3.43768024,3391.5,3390.8,0.501]
[1762536835492,0.1971,3391.6,3390.8,0.501]
[1762536836023,2.9488226,3391.2,3390.8,0.501]
[1762536836233,3.14556526,3391.6,3391.5,0.1472]
[1762536836439,2.94887716,3391.2,3391.1,0.1472]
[1762536836610,2.94890123,3391.1,3390.8,0.501]
[1762536836809,0.4891,3391.5,3391.1,0.1472]
[1762536837009,0.4891,3391.5,3391.4,0.1472]
[1762536837335,2.94854784,3391.5,3391.4,0.1472]
[1762536837894,3.43764784,3391.5,3391.4,0.1472]
[1762536838291,2.94854784,3391.5,3391.4,0.1472]
[1762536838741,0.1971,3391.6,3391.4,0.1472]
[1762536838950,2.94854784,3391.5,3391.4,0.1472]
[1762536839298,3.49984784,3391.5,3391.4,0.1472]
[1762536839565,4.1643879,3391.5,3391.4,0.1472]
[1762536839860,10.74339323,3391.5,3391.4,0.1472]
[1762536840010,10.74339323,3391.5,3390.8,0.501]
[1762536840011,2.94906956,3390.9,3390.8,0.501]
[1762536840212,3.42596956,3390.9,3390.8,0.501]
[1762536840465,7.24354539,3391.5,3390.8,0.501]
[1762536840466,0.4891,3391.9,3390.8,0.6482]
[1762536840623,0.1965,3392.3,3390.8,0.6482]